Cogmind - Beta 11 X2 @@@ ROGUE MODE // 2021.03.07 @ 11:09:54 Player: Heavyrisk Result: Self-destructed Performance ------------- Evolutions (5) 2500 Regions Visited (11) 2200 Robots Destroyed (126) 630 Value Destroyed (5476) 5476 Prototype IDs (9) 180 Alien Tech Used (0) 0 Bonus (2412) 2412 TOTAL SCORE: 13398 Bonus ------- High Alert Combat Kills 312 Entered Garrisons 600 Used RIF Installer 1500 Cogmind --------- Core Integrity 688/1000 Matter 211/300 Energy 290/290 System Corruption 0% Temperature Cool (0) Movement Walking (360) Ox3 Location -5/Factory Parts ------- > --- POWER (1) -------- Improved Deuterium Engine > --- PROPULSION (5) --- Improved Medium Treads Carbon-fiber Leg > --- UTILITY (9) ------ High-capacity Storage Unit Enhanced Optical Array Improved Transmission Jammer Relay Coupler [NC] (3) Relay Coupler [NC] (34) Relay Coupler [Swarmer] (30) Relay Coupler [Grunt] (18) Relay Coupler [Sentry] (20) > --- WEAPON (2) ------- (None) > --- INVENTORY (20) --- Light Angular Momentum Engine Light Fission Core Advanced Heat Sink Matter Compressor (250) Advanced Signal Interpreter Improved Transmission Jammer Relay Coupler [NC] (35) Relay Coupler [Sentry] (26) Drone Bay (2/2) Coil Gun Magnetic Acceleration Cannon Magnetic Acceleration Cannon Hypervelocity Gauss Cannon Heavy Proton Missile Launcher Power Maul Axe Peak State ------------ > --- POWER ------------ Light Angular Momentum Engine > --- PROPULSION ------- Carbon-fiber Leg Carbon-fiber Leg Carbon-fiber Leg Flexi-carbon Leg Flexi-carbon Leg > --- UTILITY ---------- High-capacity Storage Unit Enhanced Optical Array Improved Transmission Jammer Heavy Reflective Plating Relay Coupler [NC] Relay Coupler [Swarmer] Relay Coupler [Grunt] Relay Coupler [Sentry] > --- WEAPON ----------- Heavy Phase Cannon Spear > --- INVENTORY -------- Improved Deuterium Engine Light Angular Momentum Engine Light Fission Core Carbon-fiber Leg Carbon-fiber Leg Carbon-fiber Leg Advanced Heat Sink Matter Compressor Advanced Signal Interpreter Improved Transmission Jammer Improved Light Armor Plating Relay Coupler [NC] Relay Coupler [NC] Relay Coupler [NC] Relay Coupler [Sentry] Improved EM Pulse Cannon Magnetic Acceleration Cannon Magnetic Acceleration Cannon Remote Datajack Power Maul [Rating: 73] Favorites ----------- Power Light Angular Momentum Engine Engine Light Angular Momentum Engine Power Core Light Nuclear Core Propulsion Carbon-fiber Leg Treads Light Treads Leg Carbon-fiber Leg Hover Unit Cooled Aerolev Unit Utility High-capacity Storage Unit Device Improved Transmission Jammer Storage High-capacity Storage Unit Processor Advanced Targeting Computer Hackware Relay Coupler [NC] Protection Improved Light Armor Plating Weapon Gauss Cannon Energy Gun Heavy Laser Energy Cannon Improved EM Pulse Cannon Ballistic Gun Autogun Ballistic Cannon Gauss Cannon Launcher Rocket Launcher Special Weapon Remote Datajack Impact Weapon Power Maul Slashing Weapon Axe Piercing Weapon Spear Build | -11 -10 -9 -8 -8 -8 -8 -7 -6 -6 -6 -5 ------- Run | Scr Mat Mat Mat Gar Mat Gar Fac Fac Gar Fac Fac Slots Evolved 10 | . . 2 2 . . . 2 2 . . 2 Power . | . . . . . . . . . . . . Propulsion 3 | . . 1 2 . . . . . . . . Utility 7 | . . 1 . . . . 2 2 . . 2 Weapon . | . . . . . . . . . . . . Parts Attached 192 | 6 4 15 3 11 10 7 30 2 23 54 27 Power 18 | 1 . 1 . 2 2 2 2 . 2 5 1 Engine 14 | 1 . 1 . 1 2 2 2 . 1 3 1 Core 4 | . . . . 1 . . . . 1 2 . Reactor . | . . . . . . . . . . . . Propulsion 58 | 2 . 8 2 2 5 . 12 . 7 14 6 Treads 12 | . . . . . 4 . 3 . 1 3 1 Leg 45 | 2 . 8 2 2 1 . 9 . 6 10 5 Wheel . | . . . . . . . . . . . . Hover 1 | . . . . . . . . . . 1 . Flight . | . . . . . . . . . . . . Utility 41 | 1 1 4 . 2 . 1 9 2 3 12 6 Device 6 | . . . . . . . 2 . . 3 1 Storage 7 | 1 1 3 . 1 . . . . . 1 . Processor 5 | . . . . . . . 3 1 . 1 . Hackware 9 | . . . . . . . . . 1 5 3 Protection 14 | . . 1 . 1 . 1 4 1 2 2 2 Artifact . | . . . . . . . . . . . . Weapon 75 | 2 3 2 1 5 3 4 7 . 11 23 14 Energy Gun 3 | 2 . . . . . . . . 1 . . Energy Cannon 6 | . . . . . . . . . . 3 3 Ballistic Gun 10 | . 3 2 1 2 2 . . . . . . Ballistic Cannon 20 | . . . . 1 1 2 5 . 5 5 1 Launcher 5 | . . . . 2 . 1 1 . 1 . . Special Weapon 16 | . . . . . . . . . 1 8 7 Impact Weapon 7 | . . . . . . 1 1 . 3 2 . Slashing Weapon 2 | . . . . . . . . . . . 2 Piercing Weapon 6 | . . . . . . . . . . 5 1 Special Melee Weapon . | . . . . . . . . . . . . Unidentified Prototypes 3 | . . 1 . . . . . . . 1 1 Parts Lost 59 | . . 1 . 6 7 3 4 . 13 9 16 Power 13 | . . . . 2 2 1 2 . 2 3 1 Propulsion 30 | . . 1 . 2 4 2 1 . 8 3 9 Utility 9 | . . . . 2 . . 1 . 1 2 3 Weapon 7 | . . . . . 1 . . . 2 1 3 Highest Loss Streak 9 | . . 1 . 2 2 2 2 . 6 4 9 Average Slot Usage (%) 94 | . 94 99 98 99 92 82 93 92 94 96 91 Engine 6 | . 14 11 9 3 5 9 7 6 4 5 5 Treads 6 | . . . . . 18 28 6 . . 9 . Leg 26 | . 28 33 45 45 20 . 25 33 30 20 26 Device 3 | . . . . . . . 6 6 6 5 5 Storage 11 | . 22 22 18 19 27 22 7 6 6 6 5 Processor 7 | . . . . . . . 13 19 17 4 5 Hackware 6 | . . . . . . . . . 1 21 23 Protection 6 | . . 10 9 7 . 4 6 6 9 6 4 Ballistic Gun 4 | . 24 22 16 10 10 . . . . . . Ballistic Cannon 6 | . . . . 7 7 16 14 13 8 . . Special Weapon 1 | . . . . . . . . . . 4 3 Piercing Weapon 1 | . . . . . . . . . . 3 4 Naked Turns . | . . . . . . . . . . . . Heaviest Build 86 | 12 26 62 62 62 59 65 85 86 86 69 77 Greatest Support 90 | 20 20 30 50 50 80 80 89 89 89 90 85 Greatest Overweight (x) 3 | 3 1 2 1 1 2 1 1 . 2 1 1 Average Overweight (x) . | . . . 1 1 . . . . . . . Largest Inventory Capacity 20 | 8 10 20 20 20 20 20 20 20 20 20 20 Average Capacity 18 | 7 9 10 20 20 20 20 20 20 20 20 20 Most Carried 20 | 4 9 10 15 20 20 20 20 20 20 20 20 Average Carried 17 | 2 8 9 12 16 19 19 19 19 18 19 18 Final Capacity 20 | 8 10 20 20 20 20 20 20 20 20 20 20 Final Carried 20 | 4 9 10 15 19 20 20 20 20 20 20 16 Class Distribution -------------------- 39% | Bothacker-Mutant 36% | Scavenger-Mutant 24% | Mutant Dominant Class ---------------- Mutant | -10/Materials Mutant | -9/Materials Scavenger-Mutant | -8/Materials Scavenger-Mutant | -8/Garrison Scavenger-Mutant | -8/Materials Scavenger-Mutant | -8/Garrison Scavenger-Mutant | -7/Factory Mutant | -6/Factory Bothacker-Mutant | -6/Garrison Bothacker-Mutant | -6/Factory Bothacker-Mutant | -5/Factory Resources | -11 -10 -9 -8 -8 -8 -8 -7 -6 -6 -6 -5 ----------- Run | Scr Mat Mat Mat Gar Mat Gar Fac Fac Gar Fac Fac Matter Collected 5320 | 246 254 655 51 303 267 369 750 . 998 1167 260 Remotely . | . . . . . . . . . . . . Salvage Created 4767 | 26 145 551 51 260 285 327 750 . 968 1203 201 Parts 203 | 1 9 28 2 11 16 17 38 . 20 46 15 Haulers Intercepted . | . . . . . . . . . . . . Recyclers Shooed 7 | . 1 1 . . . . 4 . . 1 . Parts Field Recycled . | . . . . . . . . . . . . Retrieved Matter . | . . . . . . . . . . . . Parts Self-Destructed . | . . . . . . . . . . . . Prevented . | . . . . . . . . . . . . Kills | -11 -10 -9 -8 -8 -8 -8 -7 -6 -6 -6 -5 ------- Run | Scr Mat Mat Mat Gar Mat Gar Fac Fac Gar Fac Fac Combat Hostiles Destroyed 110 | . 4 12 1 9 8 11 19 . 25 16 5 Melee 12 | . . . . . . . . . 2 8 2 Guns 24 | . 4 12 1 2 2 . . . 3 . . Cannons 55 | . . . . 2 6 5 17 . 16 6 3 AOE 16 | . . . . 5 . 6 2 . 3 . . Classes Destroyed 12 | 1 3 3 . . 2 . 1 . 1 1 . Worker 6 | . . . . . 1 . 2 . . 2 1 Tunneler 1 | 1 . . . . . . . . . . . Recycler 7 | . 1 1 . . . . 2 . . 3 . Watcher 2 | . . 1 . . . . 1 . . . . Swarmer 32 | . 3 3 . 2 2 6 7 . 4 2 3 Grunt 47 | . 1 7 . 7 1 5 2 . 15 8 1 Brawler 3 | . . . . . 2 . . . 1 . . Duelist 1 | . . 1 . . . . . . . . . Sentry 14 | . . 1 1 . 3 . 5 . 3 1 . Specialist 2 | . . . . . . . . . 2 . . Hunter 3 | . . . . . . . . . . 2 1 Programmer 8 | . . . . . . . 5 . . 3 . Best Kill Streak 8 | 1 3 4 1 5 5 6 5 . 8 4 2 Combat Bots Only 8 | . 3 3 1 5 3 6 5 . 8 3 2 Max Kills in Single Turn 3 | 1 1 2 1 2 1 2 2 . 3 1 1 Gunslinging 1 | . . 1 . . . . . . . . . Exploded 3 | . . . . 2 . 2 2 . 3 . . Melee 1 | . . . . . . . . . 1 1 1 Uniques/NPCs Destroyed . | . . . . . . . . . . . . Combat | -11 -10 -9 -8 -8 -8 -8 -7 -6 -6 -6 -5 -------- Run | Scr Mat Mat Mat Gar Mat Gar Fac Fac Gar Fac Fac Damage Taken 10629 | . 148 511 113 750 824 453 1577 . 2228 1942 2083 Core 1011 | . 27 48 14 38 90 90 126 . 117 149 312 Absorbed by Shields 225 | . . . . 60 . 68 . . 97 . . Core Remaining (%) 80 | 100 89 88 . . . 57 82 . . 68 . Volleys Fired 382 | 3 13 40 7 37 49 21 50 . 74 57 31 Largest 2 | 2 2 2 2 2 2 2 2 . 2 2 1 Hottest 117 | 80 46 46 46 62 71 96 96 . 117 106 98 Shots Fired 630 | 6 26 80 14 65 91 37 87 . 125 68 31 Gun 246 | 6 26 80 14 39 55 . . . 26 . . Cannon 313 | . . . . 22 36 33 86 . 97 29 10 Launcher 10 | . . . . 4 . 4 1 . 1 . . Special 61 | . . . . . . . . . 1 39 21 Kinetic 514 | . 26 80 14 61 91 33 86 . 97 20 6 Thermal 36 | 6 . . . . . . . . 26 . 4 Explosive 10 | . . . . 4 . 4 1 . 1 . . Electromagnetic 9 | . . . . . . . . . . 9 . Robot Hit Streak 19 | 3 4 10 13 10 12 16 11 . 19 5 6 Robot Miss Streak 3 | 1 1 3 1 2 3 2 1 . 2 2 3 Penetration Max . | . . . . . . . . . . . . Secondary Targets 3 | . . 2 . 1 . . . . . . . Max Gunslinging Chain 1 | . . 1 . 1 . . . . . . . Shots Hit Robots 515 | 4 16 54 13 40 70 43 66 . 112 72 25 Core Hits 195 | 1 5 21 2 21 18 16 30 . 50 24 7 Critical Hits 23 | . . . . 2 1 4 9 . 3 3 1 Critical Kills 10 | . . . . 1 . 2 3 . 2 2 . Critical Parts Destroyed 13 | . . . . 1 1 2 6 . 1 1 1 Melee Attacks 112 | . . . . . . 16 7 . 22 56 11 Impact 62 | . . . . . . 16 7 . 22 17 . Slashing 3 | . . . . . . . . . . . 3 Piercing 47 | . . . . . . . . . . 39 8 Sneak Attacks 23 | . . . . . . . 2 . . 20 1 Combat Hostiles 11 | . . . . . . . . . . 11 . Follow-up Attacks 1 | . . . . . . . . . . . 1 Damage Inflicted 13594 | 44 231 752 192 1044 1220 1753 2378 . 3112 2411 457 Guns 2591 | 44 210 744 192 343 621 . . . 437 . . Cannons 5753 | . . . . 249 581 633 1762 . 1939 433 156 Explosions 1317 | . . . . 452 . 467 175 . 223 . . Melee 3708 | . . . . . . 653 279 . 513 1978 285 Ramming 225 | . 21 8 . . 18 . 162 . . . 16 Kinetic 7709 | . 210 744 192 592 1202 633 1762 . 1939 313 122 Thermal 515 | 44 . . . . . . . . 437 . 34 Explosive 1317 | . . . . 452 . 467 175 . 223 . . Electromagnetic 120 | . . . . . . . . . . 120 . Impact 1884 | . . . . . . 653 279 . 513 439 . Slashing 180 | . . . . . . . . . . . 180 Piercing 1644 | . . . . . . . . . . 1539 105 Highest Corruption 8 | . . 2 . . . . 4 . . 8 . Average Corruption 4 | . . 1 . . . . 2 . . 6 . Corruption Purged . | . . . . . . . . . . . . Effects 72 | . . 2 . . . . 30 . . 40 . Message Errors 20 | . . . . . . . 11 . . 9 . Matter Fused 17 | . . . . . . . 5 . . 12 . Heat Flow Errors 12 | . . 1 . . . . 4 . . 7 . Energy Discharges 6 | . . . . . . . 4 . . 2 . Parts Rejected 2 | . . . . . . . 1 . . 1 . Data Loss (minor) 12 | . . 1 . . . . 5 . . 6 . Data Loss (major) 2 | . . . . . . . . . . 2 . Misfires 1 | . . . . . . . . . . 1 . Overload Shots . | . . . . . . . . . . . . Overflow Damage 920 | . . . . 50 25 123 273 . 51 398 . Projectiles 127 | . . . . . 25 2 54 . 12 34 . Explosions 56 | . . . . 50 . 6 . . . . . Melee 737 | . . . . . . 115 219 . 39 364 . Knockbacks 48 | . . . . 4 2 9 13 . 10 8 2 Impact 7 | . . . . . . 2 3 . . 2 . Kinetic 37 | . . . . 4 2 6 10 . 9 4 2 Secondary 4 | . . . . . . 1 . . 1 2 . Self-Inflicted Damage 77 | . . . . 44 . 18 15 . . . . Shots 4 | . . . . 2 . 1 1 . . . . Rammed 4 | . . . . . 2 . 2 . . . . Targets Rammed 30 | . 4 1 . . 2 . 22 . . . 1 Kicked 25 | . 4 1 . . . . 19 . . . 1 Crushed 1 | . . . . . . . 1 . . . . Highest Temperature 445 | 54 12 159 22 146 58 321 187 . 13 445 326 Average Temperature 53 | 29 6 28 8 44 17 127 77 . 3 75 63 Received Heat Transfer 2531 | . 24 144 36 345 297 186 249 . 776 324 150 Effects 3 | . . . . . . . . . . 3 . Shutdowns 1 | . . . . . . . . . . 1 . Energy Bleed 1 | . . . . . . . . . . 1 . Short Circuit 1 | . . . . . . . . . . 1 . Siege Activations . | . . . . . . . . . . . . Robots Corrupted . | . . . . . . . . . . . . Combat Hostiles . | . . . . . . . . . . . . Parts Fried 9 | . . . . . . 2 1 . . 6 . Impact Corruptions 23 | . . . . . . 7 10 . 2 4 . Robots Melted . | . . . . . . . . . . . . Combat Hostiles . | . . . . . . . . . . . . Parts Melted 1 | . . . . . . . . . 1 . . Heat Transferred 910 | 100 . . . . . . . . 773 . 37 Parts Sabotaged . | . . . . . . . . . . . . Parts Stolen . | . . . . . . . . . . . . Parts Stripped . | . . . . . . . . . . . . Power Chain Reactions . | . . . . . . . . . . . . Missiles Intercepted . | . . . . . . . . . . . . Alert | -11 -10 -9 -8 -8 -8 -8 -7 -6 -6 -6 -5 ------- Run | Scr Mat Mat Mat Gar Mat Gar Fac Fac Gar Fac Fac Peak Influence 760 | 5 118 292 126 536 397 543 503 246 760 414 210 Initial 399 | . 3 27 81 81 261 199 284 246 172 399 105 Average 246 | 1 54 150 102 302 301 405 225 246 565 164 77 Maximum Alert Level 3 | . . 1 . 2 1 2 2 1 3 2 1 Low Security (%) 53 | 100 100 74 100 35 6 6 52 . 3 78 94 Level 1 29 | . . 25 . 36 93 35 41 100 14 20 5 Level 2 15 | . . . . 27 . 57 6 . 69 1 . Level 3 1 | . . . . . . . . . 12 . . Level 4 . | . . . . . . . . . . . . Level 5 . | . . . . . . . . . . . . High Security . | . . . . . . . . . . . . Max Security . | . . . . . . . . . . . . Squads Dispatched 14 | . 2 . . . . . 7 . . 4 1 Investigation 1 | . . . . . . . 1 . . . . Extermination 8 | . . . . . . . 5 . . 2 1 Reinforcement 5 | . 2 . . . . . 1 . . 2 . Assault . | . . . . . . . . . . . . Garrison . | . . . . . . . . . . . . Intercept . | . . . . . . . . . . . . Construction Impeded . | . . . . . . . . . . . . Haulers Reinforced . | . . . . . . . . . . . . Stealth | -11 -10 -9 -8 -8 -8 -8 -7 -6 -6 -6 -5 --------- Run | Scr Mat Mat Mat Gar Mat Gar Fac Fac Gar Fac Fac Distress Signals 7 | . 2 . . . . . 2 . . 2 1 Communications Jammed 61 | . . . . . . . . . . 61 . Distress Signals 61 | . . . . . . . . . . 61 . Times Spotted 198 | . 9 18 1 20 13 14 40 . 30 34 19 Peak Tracking Total 14 | . 4 5 1 6 3 8 8 . 14 7 8 Tactical Retreats 24 | . . . . 8 1 1 4 . 5 2 3 Traps | -11 -10 -9 -8 -8 -8 -8 -7 -6 -6 -6 -5 ------- Run | Scr Mat Mat Mat Gar Mat Gar Fac Fac Gar Fac Fac Traps Triggered 18 | . . 2 . 4 . 2 3 . 5 2 . Indirectly . | . . . . . . . . . . . . Trap Hack Attempts . | . . . . . . . . . . . . Triggered . | . . . . . . . . . . . . Disarmed . | . . . . . . . . . . . . Reprogrammed . | . . . . . . . . . . . . Reused . | . . . . . . . . . . . . Traps Extracted . | . . . . . . . . . . . . Installed . | . . . . . . . . . . . . Triggered . | . . . . . . . . . . . . Machines | -11 -10 -9 -8 -8 -8 -8 -7 -6 -6 -6 -5 ---------- Run | Scr Mat Mat Mat Gar Mat Gar Fac Fac Gar Fac Fac Machines Disabled 11 | . . 1 . 2 . . 3 . 2 2 1 Max in Single Turn 1 | . . 1 . 1 . . 1 . 1 1 1 Garrison Access 2 | . . . . . . . . . . 2 . Garrison Relay 4 | . . . . 2 . . . . 2 . . Machines Sabotaged . | . . . . . . . . . . . . Garrisons Compromised . | . . . . . . . . . . . . Overloaded Fab Kills . | . . . . . . . . . . . . Fab Network Shutdowns . | . . . . . . . . . . . . Hacking | -11 -10 -9 -8 -8 -8 -8 -7 -6 -6 -6 -5 --------- Run | Scr Mat Mat Mat Gar Mat Gar Fac Fac Gar Fac Fac Machines Accessed 30 | . 3 1 3 . 5 . 7 1 . 6 4 Terminals 16 | . 3 1 1 . 3 . 5 . . 3 . Fabricators 2 | . . . . . . . 1 . . 1 . Repair Stations 3 | . . . 1 . . . 1 . . . 1 Recycling Units 3 | . . . . . 1 . . . . . 2 Scanalyzers 1 | . . . . . . . . . . . 1 Garrison Access 5 | . . . 1 . 1 . . 1 . 2 . Total Hacks 66 | . 9 1 6 . 11 . 16 1 . 13 9 Successful 35 | . 6 . 3 . 6 . 7 1 . 6 6 Failed 31 | . 3 1 3 . 5 . 9 . . 7 3 Catastrophic 6 | . . . 1 . 1 . 1 . . 2 1 Database Lockouts . | . . . . . . . . . . . . Manual 29 | . 6 1 2 . 8 . 7 . . 5 . Terminals 36 | . 9 1 2 . 8 . 10 . . 6 . Fabricators 6 | . . . . . . . 4 . . 2 . Repair Stations 6 | . . . 3 . . . 2 . . . 1 Recycling Units 7 | . . . . . 2 . . . . . 5 Scanalyzers 3 | . . . . . . . . . . . 3 Garrison Access 8 | . . . 1 . 1 . . 1 . 5 . Terminal Hacks 8 | . 3 . . . 2 . 3 . . . . Part Schematic 1 | . . . . . 1 . . . . . . Branch Access Points 2 | . 1 . . . . . 1 . . . . Locate Traps 2 | . 1 . . . 1 . . . . . . Recall Reinforcements 1 | . 1 . . . . . . . . . . Registered Components 1 | . . . . . . . 1 . . . . Zone Layout 1 | . . . . . . . 1 . . . . Fabricator Hacks 4 | . . . . . . . 2 . . 2 . Load Schematic 2 | . . . . . . . 1 . . 1 . Build 2 | . . . . . . . 1 . . 1 . Repair Station Hacks 3 | . . . 2 . . . 1 . . . . Scan Component 2 | . . . 1 . . . 1 . . . . Repair 1 | . . . 1 . . . . . . . . Recycling Unit Hacks 5 | . . . . . 2 . . . . . 3 Report Inventory 3 | . . . . . 1 . . . . . 2 Retrieve Components 2 | . . . . . 1 . . . . . 1 Scanalyzer 3 | . . . . . . . . . . . 3 Insert Component 1 | . . . . . . . . . . . 1 Analyze 2 | . . . . . . . . . . . 2 Garrison Access Hacks 7 | . . . 1 . 1 . . 1 . 4 . Unlock Access 3 | . . . 1 . 1 . . 1 . . . Seal Access 2 | . . . . . . . . . . 2 . Coupler Status 2 | . . . . . . . . . . 2 . Unauthorized Hacks 5 | . 3 . . . 1 . 1 . . . . Terminals 5 | . 3 . . . 1 . 1 . . . . Track 3 | . 1 . . . 1 . 1 . . . . Botnet 2 | . 2 . . . . . . . . . . Fabricators . | . . . . . . . . . . . . Repair Stations . | . . . . . . . . . . . . Recycling Units . | . . . . . . . . . . . . Scanalyzers . | . . . . . . . . . . . . Garrison Access . | . . . . . . . . . . . . Data Cores Recovered . | . . . . . . . . . . . . Used . | . . . . . . . . . . . . Hacking Detections 27 | . 2 1 2 . 5 . 7 1 . 6 3 Full Trace Events 1 | . . . . . . . 1 . . . . Feedback Events . | . . . . . . . . . . . . Feedback Blocked . | . . . . . . . . . . . . Robot Schematics Acquired . | . . . . . . . . . . . . Robots Built . | . . . . . . . . . . . . Matter . | . . . . . . . . . . . . Time . | . . . . . . . . . . . . Total Robot Build Rating . | . . . . . . . . . . . . Part Schematics Acquired 2 | . . . . . 1 . . . . . 1 Parts Built 4 | . . . . . . . 2 . . 2 . Matter 292 | . . . . . . . 146 . . 146 . Time 72 | . . . . . . . 36 . . 36 . Total Part Build Rating 12 | . . . . . . . 6 . . 6 . Parts Repaired 1 | . . . 1 . . . . . . . . Time 32 | . . . 32 . . . . . . . . Parts Recycled . | . . . . . . . . . . . . Recycled Matter . | . . . . . . . . . . . . Retrieved Matter . | . . . . . . . . . . . . Retrieved Components 10 | . . . . . 7 . . . . . 3 Parts Scanalyzed 1 | . . . . . . . . . . . 1 Part Schematics Acquired 1 | . . . . . . . . . . . 1 Parts Damaged . | . . . . . . . . . . . . Bothacking | -11 -10 -9 -8 -8 -8 -8 -7 -6 -6 -6 -5 ------------ Run | Scr Mat Mat Mat Gar Mat Gar Fac Fac Gar Fac Fac Used RIF Installer 3 | . . . . 1 . 1 . . 1 . . Coupler Efficiency 1 | . . . . . . . . . 1 . . Watcher Feeds 1 | . . . . . . 1 . . . . . Robots Hacked 33 | . . . . . . . . . 1 22 10 Non-combat 19 | . . . . . . . . . . 11 8 Combat 14 | . . . . . . . . . 1 11 2 Robot Hacks Applied 43 | . . . . . . . . . 1 28 14 no_distress 1 | . . . . . . . . . . 1 . generate_echo 2 | . . . . . . . . . . . 2 start_evac 1 | . . . . . . . . . . 1 . find_chute 1 | . . . . . . . . . . . 1 map_walls 5 | . . . . . . . . . . 3 2 find_fabricator 1 | . . . . . . . . . . 1 . drop_inventory 4 | . . . . . . . . . . 3 1 locate_stockpiles 1 | . . . . . . . . . . . 1 find_station 1 | . . . . . . . . . . 1 . purge_threat 1 | . . . . . . . . . . 1 . locate_traps 2 | . . . . . . . . . . 1 1 block_reporting 1 | . . . . . . . . . . . 1 mark_security 2 | . . . . . . . . . . 2 . relay_feed 1 | . . . . . . . . . . 1 . find_garrison 2 | . . . . . . . . . . 2 . overload_power 5 | . . . . . . . . . . 2 3 amplify_resonance 3 | . . . . . . . . . . 2 1 reboot_system 6 | . . . . . . . . . . 6 . overwrite_iff 1 | . . . . . . . . . . . 1 streamctrl_high 1 | . . . . . . . . . 1 . . formatsys_low 1 | . . . . . . . . . . 1 . Relay Couplers Released 20 | . . . . 7 . . . . 9 4 . Machine Destruction 20 | . . . . 7 . . . . 9 4 . Attached 9 | . . . . . . . . . 1 5 3 Robots Rewired . | . . . . . . . . . . . . Allies Hacked . | . . . . . . . . . . . . Hacks Repelled . | . . . . . . . . . . . . Allies | -11 -10 -9 -8 -8 -8 -8 -7 -6 -6 -6 -5 -------- Run | Scr Mat Mat Mat Gar Mat Gar Fac Fac Gar Fac Fac Total Allies 3 | . . . . . . . . . 1 1 1 Largest Group 1 | . . . . . . . . . 1 1 1 Highest-Rated Group 29 | . . . . . . . . . 20 11 29 Highest-Rated Ally 29 | . . . . . . . . . 20 11 29 Total Orders 2 | . . . . . . . . . . 2 . STAY 1 | . . . . . . . . . . 1 . AID 1 | . . . . . . . . . . 1 . Ally Attacks 13 | . . . . . . . . . 9 . 4 Total Damage 193 | . . . . . . . . . 117 . 76 Kills 1 | . . . . . . . . . . . 1 Allies Corrupted . | . . . . . . . . . . . . Allies Melted . | . . . . . . . . . . . . Intel | -11 -10 -9 -8 -8 -8 -8 -7 -6 -6 -6 -5 ------- Run | Scr Mat Mat Mat Gar Mat Gar Fac Fac Gar Fac Fac Robot Analysis Total . | . . . . . . . . . . . . Derelict Logs Recovered . | . . . . . . . . . . . . Drone Launches . | . . . . . . . . . . . . Drone Recoveries . | . . . . . . . . . . . . Exploration | -11 -10 -9 -8 -8 -8 -8 -7 -6 -6 -6 -5 ------------- Run | Scr Mat Mat Mat Gar Mat Gar Fac Fac Gar Fac Fac Turns Passed 10450 | 106 494 735 307 649 693 589 2394 99 1370 2188 826 Spaces Moved 5195 | 67 274 348 119 243 267 224 1105 77 726 1204 541 Core 13 | 13 . . . . . . . . . . . Treads 949 | . . . . . 105 224 175 . . 445 . Legs 4233 | 54 274 348 119 243 162 . 930 77 726 759 541 Wheels . | . . . . . . . . . . . . Hover . | . . . . . . . . . . . . Flight . | . . . . . . . . . . . . Fastest Speed 50 | 50 120 120 200 200 160 160 120 122 122 120 120 Average Speed 156 | 125 155 164 200 200 185 211 172 122 135 141 125 Slowest Speed 280 | 200 200 280 200 200 280 260 260 122 280 260 200 Overloaded Moves . | . . . . . . . . . . . . Propulsion Burnouts . | . . . . . . . . . . . . Robots Hopped . | . . . . . . . . . . . . Cave-ins Triggered . | . . . . . . . . . . . . Exploration Rate (%) 27 | 4 44 36 9 39 27 40 23 2 72 25 12 Regions Visited 11 Branch Regions . Pre-discovered Areas . | . . . . . . . . . . . . Known Exits Taken 3 | . . . 1 . 1 . . 1 . . . Unknown Exits Taken 5 | 1 1 1 . . . . 1 . . 1 . Scrap Searched . | . . . . . . . . . . . . Spaces Dug 64 | . . . . 20 . 19 9 . 11 3 2 Terrain Destroyed 117 | . . . . 29 4 39 20 . 11 9 5 Melee 11 | . . . . . . . 5 . 1 3 2 Projectile 25 | . . . . . 4 1 11 . . 6 3 AOE 81 | . . . . 29 . 38 4 . 10 . . Terrain Rammed . | . . . . . . . . . . . . Walls Destroyed . | . . . . . . . . . . . . Machines Disabled . | . . . . . . . . . . . . Actions | -11 -10 -9 -8 -8 -8 -8 -7 -6 -6 -6 -5 --------- Run | Scr Mat Mat Mat Gar Mat Gar Fac Fac Gar Fac Fac Total 6775 | 79 320 452 176 348 391 281 1485 83 954 1558 648 Wait 563 | . 7 28 40 33 29 6 215 . 70 121 14 Move 5182 | 66 273 347 119 241 266 222 1104 76 724 1203 541 Hop . | . . . . . . . . . . . . Pick Up 151 | 4 10 7 7 10 17 3 26 3 17 32 15 Fast Attach 44 | 6 3 4 1 . 4 1 12 . 3 9 1 Attach 71 | . . 3 2 6 4 1 11 2 11 15 16 Detach 11 | . 1 1 . . 1 . 2 1 . 2 3 Swap 77 | . 1 8 . 5 2 5 7 . 9 30 10 Drop 113 | . 8 13 . . 17 4 24 1 7 33 6 Fire 382 | 3 13 40 7 37 49 21 50 . 74 57 31 Melee 111 | . . . . . . 16 7 . 22 56 10 Ram . | . . . . . . . . . . . . Kick 25 | . 4 1 . . . . 19 . . . 1 Crush 5 | . . . . . 2 . 3 . . . . Escape Stasis 40 | . . . . 16 . 2 5 . 17 . . Rewire . | . . . . . . . . . . . . Trap . | . . . . . . . . . . . . Miscellaneous . | . . . . . . . . . . . . Route ------- -11/Scrapyard -10/Materials (discovered 3 exits: *Mat / Min x2) -9/Materials (discovered 2 exits: *Mat / [*Min]) -8/Materials -8/Garrison -8/Materials -8/Garrison -7/Factory (discovered 4 exits: *Fac / Sto / *Low x2) -6/Factory -6/Garrison (discovered 3 exits: *Fac x3) -6/Factory (discovered 2 exits: *Fac x2) -5/Factory History --------- Turn | Location | Event 30 | -11/Scrapyard | Discovered new exit (range 16) 107 | -11/Scrapyard | Entered Materials 275 | -10/Materials | Identified exit to Mines 324 | -10/Materials | Build established: Mutant 435 | -10/Materials | Discovered new exit (range 4) 601 | -10/Materials | Entered another Materials area 601 | -9/Materials | Evolved 2 slots: Propulsion x1, Utility x1 1057 | -9/Materials | Discovered new exit (range 5) 1273 | -9/Materials | Discovered new exit (range 5) 1336 | -9/Materials | Entered another Materials area 1336 | -8/Materials | Evolved 2 slots: Propulsion x2 1451 | -8/Materials | Repaired Autogun 1643 | -8/Materials | Build established: Scavenger-Mutant 1643 | -8/Materials | Identified exit to Garrison 1643 | -8/Materials | Entered Garrison 1653 | -8/Garrison | Installed Relay Interface Framework 1720 | -8/Garrison | Triggered checkpoint 1780 | -8/Garrison | Garrison Relay disabled 1854 | -8/Garrison | Triggered checkpoint 1863 | -8/Garrison | Triggered checkpoint 2092 | -8/Garrison | Triggered checkpoint 2151 | -8/Garrison | Garrison Relay disabled 2266 | -8/Garrison | Discovered new exit (range 8) 2292 | -8/Garrison | Entered Materials 2978 | -8/Materials | Identified exit to Garrison 2985 | -8/Materials | Entered Garrison 2993 | -8/Garrison | Expanded RIF knowledge: Patrol Navigation 3198 | -8/Garrison | Triggered checkpoint 3218 | -8/Garrison | Triggered checkpoint 3540 | -8/Garrison | Discovered new exit (range 10) 3574 | -8/Garrison | Entered Factory 3574 | -7/Factory | Evolved 2 slots: Utility x2 3708 | -7/Factory | Identified exit to Storage 3708 | -7/Factory | Identified exit to Lower Caves 4113 | -7/Factory | Fabricated Carbon-fiber Leg (x2) 5441 | -7/Factory | Build established: Mutant 5778 | -7/Factory | Discovered new exit (range 12) 5968 | -7/Factory | Entered another Factory area 5968 | -6/Factory | Evolved 2 slots: Utility x2 6066 | -6/Factory | Identified exit to Garrison 6067 | -6/Factory | Entered Garrison 6180 | -6/Garrison | Triggered checkpoint 6223 | -6/Garrison | Garrison Relay disabled 6280 | -6/Garrison | Triggered checkpoint 6397 | -6/Garrison | Destroyed 8 combat bots 6527 | -6/Garrison | Build established: Bothacker-Mutant 6645 | -6/Garrison | Discovered new exit (range 13) 6709 | -6/Garrison | Triggered checkpoint 6817 | -6/Garrison | Lost 6 parts (3n1u2w) 6925 | -6/Garrison | Discovered new exit (range 9) 6968 | -6/Garrison | Triggered checkpoint 7135 | -6/Garrison | Discovered new exit (range 12) 7157 | -6/Garrison | Expanded RIF knowledge: Coupler Efficiency 7203 | -6/Garrison | Triggered checkpoint 7301 | -6/Garrison | Garrison Relay disabled 7437 | -6/Garrison | Entered Factory 8881 | -6/Factory | Lost 4 parts (1p1n1u1w) 9136 | -6/Factory | Lost 3 parts (1p1n1u) 9282 | -6/Factory | Discovered new exit (range 11) 9342 | -6/Factory | Fabricated Carbon-fiber Leg (x2) 9415 | -6/Factory | Found Hvy. Reflective Plating 9594 | -6/Factory | Discovered new exit (range 7) 9625 | -6/Factory | Entered another Factory area 9625 | -5/Factory | Evolved 2 slots: Utility x2 10290 | -5/Factory | Spotted B-75 Beast 10393 | -5/Factory | Lost 9 parts (1p4n3u1w) 10451 | -5/Factory | Self-destructed Last Messages --------------- 10379_ U-05 Engineer lays Concrete. 10384_ K-01 Serf collects debris. 10399_ G-50 Soldier destroyed. 10400_ K-01 Serf collects debris. 10404_ Acquired Carbon-fiber Leg. 10405_ Carbon-fiber Leg destroyed. 10405_ Spear destroyed. 10405_ Knocked back. 10405_ K-01 Serf collects debris. 10409_ U-05 Engineer builds a Wall. 10412_ K-01 Serf collects debris. 10432_ Knocked back. 10439_ P-70 Sage resets K-01 Serf, system corruption cleaned. 10440_ R-10 Processor destroyed. 10441_ K-01 Serf collects debris. 10445_ K-01 Serf destroyed. 10446_ K-01 Serf collects debris. 10446_ U-05 Engineer lays Concrete. 10448_ K-01 Serf collects debris. 10451_ Flexi-carbon Leg destroyed. Map ----- +----------------------------------------------------+ | ?????????????????????????????????????????????????? | | ?????????????????????????????????????????????????? | | ?????????????????????????????????????????????????? | | ?????????????????????????????????????????????????? | | ?????????????????????????????????????????????????? | | ?????????????????????????????????????????????????? | | ?????????????????????????????????????????????????? | | ?????????????????????????????????????????????????? | | ????????????????????????!????????????????????????? | | ?????????????????????????????????????????????????? | | ?????????????????????????????????????????????????? | | ?????????????????????????????????????????????????? | | ?????????????????????????????????????????????????? | | ?????????????????????????????????????????????????? | | ????????????????????######################???????? | | ????????????????????# ???????? | | ????????????????????# ??????? | | ????????????????????# ??????? | | ????????????????????# ??????? | | ????????????????????# ??????? | | ?????#????????????### p#################??????? | | ?????##############;; #??????????????????????? | | ?????## k k #??????????????????????? | | ?????## =% #??????????????????????? | | ?????## =! ###????????????????????? | | ?????## BB=%* @; #????????????????????? | | ?????## BB == ###????????????????????? | | ?????## ;#########;## #??????????????????????? | | #+##### #??##########u##?????###?????????????? | | #??# ##u# #?????????????? | | #??# ## # """"" [#?????????????? | | #??# ##k# """"" #?????????????? | | #??# ##u# """ #?????????????? | | %% #??# ! ## # [#???????????? | | ########+"""#### ## # """"" #?????????? | | ??# " " ##R# """"" #???????? #?? | | ??# # ## # """ !#?????? #?? | | ### # ##R# #???? #?? | | # " ## """""""""### #?? | | # " # !! # ? | | # " # + | | # " " ####?? | | # " #????? | | " " ####""" # #????? | | # " # ????? | | # " # # ?????? | | # " [ # + ?????? | | ###"""""+####### # ?????? | | ??###### #????#"= # ?????? | | ???????# #????## # = ??????? | +----------------------------------------------------+ Best States ------------- Heat Dissipation 64 Energy Generation 18 Energy Capacity 290 Matter Stores 542 Matter Capacity 600 Sight Range 22 Terrain Scan Density 10 Jamming Range 12 Armor Coverage 600 Resistance: KI 20 Resistance: TH 25 Phase Shifting 5 Evasion (%) 60 Targeting Accuracy 16 Recoil Reduction 4 Relay Coupler Types 127 Relay Coupler Value 4 Item Schematics ----------------- Carbon-fiber Leg | -8/Materials | Hacked Remote Datajack | -5/Factory | Scanalyzed Robot Schematics ------------------ None Fabricated ------------ Carbon-fiber Leg | x2 | -7/Factory Carbon-fiber Leg | x2 | -6/Factory Alien Tech Used ----------------- None Achievements -------------- None Challenges ------------ None Game ------ Seed SurgeCombatSink Manual? 0 Play Time 02:39:42 Cumulative 209.1 hours Start 2021.03.04 @ 18:26:43 End 2021.03.07 @ 11:09:54 Sessions 7 Manual Loads 0 Difficulty Rogue Special Mode None Game No. 155 Rogue 155 Adventurer 0 Explorer 0 Win Type - Total 1 Types 1/0/0/0/0/0/0/0/0 Lore% 57 Gallery% 64 Achievement% 44 Wizard Run 0 Options --------- ASCII 0 Keyboard 0 Movement Arrows Keybinds 0 Fullscreen 1 Font 18/SmallcapsGlow Map View 76x50 Tactical HUD 1 Map Filters NONE Filters NONE Steam 1 RUN: d18b3f7e-3188-4f45-9ec9-218bf4ccc5e2